[Event "Late-Titled-Tuesday-Blitz-February-13-2024"]
[Site "Chess.com"]
[Date "2024.02.13"]
[Round "11"]
[White "IngOscarArdila"]
[Black "VitorBronson"]
[Result "1/2-1/2"]
[WhiteElo "2325"]
[BlackElo "2491"]
[TimeControl "180+1"]
[EndTime "16:06:47 PST"]
[Termination "Game drawn - insufficient material"]

1. d4 {[%clk 0:02:59.4]} 1... d5 {[%clk 0:02:59.9]} 2. c4 {[%clk 0:02:56.8]}
2... c6 {[%clk 0:03:00.3]} 3. cxd5 {[%clk 0:02:55.9]} 3... cxd5 {[%clk
0:03:00.1]} 4. Nc3 {[%clk 0:02:56.5]} 4... Nf6 {[%clk 0:03:00.1]} 5. Nf3 {[%clk
0:02:56.2]} 5... Nc6 {[%clk 0:02:59.1]} 6. Bf4 {[%clk 0:02:48.6]} 6... a6 {[%clk
0:02:59.5]} 7. e3 {[%clk 0:02:44.5]} 7... Bf5 {[%clk 0:02:59.4]} 8. Bd3 {[%clk
0:02:43.6]} 8... Bxd3 {[%clk 0:02:57.6]} 9. Qxd3 {[%clk 0:02:44.5]} 9... e6
{[%clk 0:02:58]} 10. O-O {[%clk 0:02:44.3]} 10... Bd6 {[%clk 0:02:58.1]} 11.
Bxd6 {[%clk 0:02:44.5]} 11... Qxd6 {[%clk 0:02:58.4]} 12. a3 {[%clk 0:02:36]}
12... O-O {[%clk 0:02:58.1]} 13. Na4 {[%clk 0:02:23.5]} 13... Na5 {[%clk
0:02:57.9]} 14. Ne5 {[%clk 0:02:20.2]} 14... b5 {[%clk 0:02:56.6]} 15. Nc5
{[%clk 0:02:17.7]} 15... Nc4 {[%clk 0:02:55.8]} 16. Nxc4 {[%clk 0:02:06.5]}
16... dxc4 {[%clk 0:02:54.3]} 17. Qc2 {[%clk 0:02:03.8]} 17... e5 {[%clk
0:02:52]} 18. dxe5 {[%clk 0:01:28.3]} 18... Qxe5 {[%clk 0:02:46.6]} 19. b4
{[%clk 0:01:28.1]} 19... Ng4 {[%clk 0:02:41.9]} 20. g3 {[%clk 0:01:25.7]} 20...
Qh5 {[%clk 0:02:42]} 21. h4 {[%clk 0:01:24.2]} 21... g5 {[%clk 0:02:42.2]} 22.
Qf5 {[%clk 0:01:19.9]} 22... f6 {[%clk 0:02:32.4]} 23. Rad1 {[%clk 0:01:07.7]}
23... Nh6 {[%clk 0:02:32.3]} 24. Qe6+ {[%clk 0:01:04.4]} 24... Kh8 {[%clk
0:02:27.5]} 25. Nd7 {[%clk 0:00:59.5]} 25... gxh4 {[%clk 0:02:20.7]} 26. Nxf8
{[%clk 0:00:59.2]} 26... Rxf8 {[%clk 0:02:10.9]} 27. Qe7 {[%clk 0:00:55.9]}
27... Rf7 {[%clk 0:02:06.2]} 28. Rd8+ {[%clk 0:00:36.7]} 28... Kg7 {[%clk
0:02:06.3]} 29. Qe8 {[%clk 0:00:36.5]} 29... hxg3 {[%clk 0:02:04.1]} 30. Qh8+
{[%clk 0:00:23.1]} 30... Kg6 {[%clk 0:02:02.9]} 31. fxg3 {[%clk 0:00:18.7]}
31... Ng4 {[%clk 0:01:59.9]} 32. Rg8+ {[%clk 0:00:18]} 32... Kh6 {[%clk
0:01:58.5]} 33. Rxg4 {[%clk 0:00:15.1]} 33... Qxg4 {[%clk 0:01:57.9]} 34. Kg2
{[%clk 0:00:15.4]} 34... Qe4+ {[%clk 0:01:44.3]} 35. Rf3 {[%clk 0:00:15]} 35...
c3 {[%clk 0:01:35.7]} 36. Qg8 {[%clk 0:00:15.3]} 36... Qg6 {[%clk 0:01:24.9]}
37. Qc8 {[%clk 0:00:14.1]} 37... c2 {[%clk 0:01:23.8]} 38. Rf4 {[%clk 0:00:14]}
38... Kg7 {[%clk 0:01:18.4]} 39. e4 {[%clk 0:00:14]} 39... f5 {[%clk 0:00:57.9]}
40. Qxc2 {[%clk 0:00:10.1]} 40... fxe4 {[%clk 0:00:58.4]} 41. Qc3+ {[%clk
0:00:07.7]} 41... Kg8 {[%clk 0:00:56.6]} 42. Qc8+ {[%clk 0:00:07.6]} 42... Kg7
{[%clk 0:00:55.9]} 43. Qc3+ {[%clk 0:00:07.6]} 43... Rf6 {[%clk 0:00:53.7]} 44.
Qc7+ {[%clk 0:00:06.4]} 44... Qf7 {[%clk 0:00:52.5]} 45. Qxf7+ {[%clk
0:00:04.5]} 45... Rxf7 {[%clk 0:00:52.4]} 46. Rxe4 {[%clk 0:00:05.4]} 46... Rc7
{[%clk 0:00:52.7]} 47. Re6 {[%clk 0:00:05.4]} 47... Rc2+ {[%clk 0:00:51.1]} 48.
Kh3 {[%clk 0:00:05]} 48... Rc3 {[%clk 0:00:45.2]} 49. Rxa6 {[%clk 0:00:05]}
49... Re3 {[%clk 0:00:44.5]} 50. Rb6 {[%clk 0:00:05.1]} 50... Rxa3 {[%clk
0:00:44.4]} 51. Rxb5 {[%clk 0:00:05.5]} 51... Rb3 {[%clk 0:00:45.3]} 52. Rb6
{[%clk 0:00:05]} 52... Rb1 {[%clk 0:00:45.4]} 53. b5 {[%clk 0:00:05.4]} 53... h6
{[%clk 0:00:45.8]} 54. Kg4 {[%clk 0:00:05.9]} 54... Rb4+ {[%clk 0:00:45.3]} 55.
Kf5 {[%clk 0:00:06.1]} 55... Rb3 {[%clk 0:00:45.4]} 56. g4 {[%clk 0:00:06.3]}
56... Rf3+ {[%clk 0:00:44.7]} 57. Ke5 {[%clk 0:00:06.2]} 57... Re3+ {[%clk
0:00:44.7]} 58. Kf4 {[%clk 0:00:06.1]} 58... Rb3 {[%clk 0:00:44.8]} 59. Kf5
{[%clk 0:00:06.5]} 59... Rf3+ {[%clk 0:00:44.5]} 60. Ke5 {[%clk 0:00:06.9]}
60... Rb3 {[%clk 0:00:44.7]} 61. Kd5 {[%clk 0:00:06.4]} 61... Rb4 {[%clk
0:00:43.4]} 62. Kc5 {[%clk 0:00:06.3]} 62... Rxg4 {[%clk 0:00:43.5]} 63. Rb7+
{[%clk 0:00:06.9]} 63... Kg6 {[%clk 0:00:43]} 64. b6 {[%clk 0:00:06.9]} 64...
Rg1 {[%clk 0:00:40.9]} 65. Rb8 {[%clk 0:00:07.3]} 65... Rc1+ {[%clk 0:00:39.8]}
66. Kd6 {[%clk 0:00:07.4]} 66... Rd1+ {[%clk 0:00:40.4]} 67. Ke5 {[%clk
0:00:06.7]} 67... Re1+ {[%clk 0:00:40.9]} 68. Kd4 {[%clk 0:00:07.1]} 68... Rd1+
{[%clk 0:00:40.4]} 69. Kc3 {[%clk 0:00:07.3]} 69... Rb1 {[%clk 0:00:40.5]} 70.
b7 {[%clk 0:00:06.9]} 70... Kg7 {[%clk 0:00:40.6]} 71. Kd4 {[%clk 0:00:07]}
71... h5 {[%clk 0:00:40.5]} 72. Ke4 {[%clk 0:00:07.2]} 72... h4 {[%clk
0:00:40.9]} 73. Kf3 {[%clk 0:00:07.6]} 73... h3 {[%clk 0:00:38.2]} 74. Kg3
{[%clk 0:00:07.8]} 74... Rb3+ {[%clk 0:00:38.6]} 75. Kh2 {[%clk 0:00:08.1]}
75... Kh7 {[%clk 0:00:39.1]} 76. Rc8 {[%clk 0:00:06.5]} 76... Rxb7 {[%clk
0:00:38.7]} 77. Kxh3 {[%clk 0:00:07.1]} 77... Rb3+ {[%clk 0:00:39]} 78. Kg2
{[%clk 0:00:07.5]} 78... Rb2+ {[%clk 0:00:39.5]} 79. Kf3 {[%clk 0:00:07.5]}
79... Rb3+ {[%clk 0:00:39.6]} 80. Ke4 {[%clk 0:00:08.1]} 80... Rb4+ {[%clk
0:00:40.1]} 81. Kd3 {[%clk 0:00:08.4]} 81... Rb1 {[%clk 0:00:40]} 82. Kd2 {[%clk
0:00:08.7]} 82... Rb2+ {[%clk 0:00:40.3]} 83. Ke3 {[%clk 0:00:08.5]} 83... Rb3+
{[%clk 0:00:40.1]} 84. Ke2 {[%clk 0:00:08.9]} 84... Rb2+ {[%clk 0:00:40.5]} 85.
Ke3 {[%clk 0:00:09.4]} 85... Rb3+ {[%clk 0:00:41]} 86. Ke2 {[%clk 0:00:10]}
86... Rb7 {[%clk 0:00:39]} 87. Rc6 {[%clk 0:00:09.8]} 87... Re7+ {[%clk
0:00:39.1]} 88. Kf2 {[%clk 0:00:10.2]} 88... Kg7 {[%clk 0:00:39.6]} 89. Kf3
{[%clk 0:00:10]} 89... Rf7+ {[%clk 0:00:40]} 90. Ke3 {[%clk 0:00:09.9]} 90...
Re7+ {[%clk 0:00:40.2]} 91. Kd2 {[%clk 0:00:10.4]} 91... Rb7 {[%clk 0:00:41.1]}
92. Kc2 {[%clk 0:00:10.1]} 92... Rf7 {[%clk 0:00:40.7]} 93. Kd2 {[%clk
0:00:10.5]} 93... Rf2+ {[%clk 0:00:41]} 94. Ke3 {[%clk 0:00:10.8]} 94... Rf6
{[%clk 0:00:41.9]} 95. Rxf6 {[%clk 0:00:10.3]} 95... Kxf6 {[%clk 0:00:42.5]}
1/2-1/2

[Event "Late-Titled-Tuesday-Blitz-February-13-2024"]
[Site "Chess.com"]
[Date "2024.02.13"]
[Round "11"]
[White "Doomfist26"]
[Black "xakevicius91"]
[Result "0-1"]
[WhiteElo "2639"]
[BlackElo "2540"]
[TimeControl "180+1"]
[EndTime "16:06:52 PST"]
[Termination "xakevicius91 won by checkmate"]

1. e4 {[%clk 0:02:55.6]} 1... c5 {[%clk 0:02:59.8]} 2. Nf3 {[%clk 0:02:55.6]}
2... a6 {[%clk 0:02:59.9]} 3. c3 {[%clk 0:02:52.3]} 3... g6 {[%clk 0:02:59.4]}
4. d4 {[%clk 0:02:52.5]} 4... cxd4 {[%clk 0:03:00.3]} 5. cxd4 {[%clk 0:02:53.2]}
5... d5 {[%clk 0:03:00.7]} 6. e5 {[%clk 0:02:44]} 6... Bg4 {[%clk 0:03:00]} 7.
Nc3 {[%clk 0:02:44.1]} 7... Nc6 {[%clk 0:02:49.9]} 8. Be2 {[%clk 0:02:41.7]}
8... e6 {[%clk 0:02:50]} 9. O-O {[%clk 0:02:41.2]} 9... Bg7 {[%clk 0:02:50.3]}
10. h3 {[%clk 0:02:41.8]} 10... Bxf3 {[%clk 0:02:50.4]} 11. Bxf3 {[%clk
0:02:42.7]} 11... Nge7 {[%clk 0:02:50.9]} 12. Bg5 {[%clk 0:02:42]} 12... O-O
{[%clk 0:02:50.4]} 13. Qd2 {[%clk 0:02:40.5]} 13... f6 {[%clk 0:02:43.3]} 14.
exf6 {[%clk 0:02:32.3]} 14... Bxf6 {[%clk 0:02:44.2]} 15. Bh6 {[%clk 0:02:30.8]}
15... Rf7 {[%clk 0:02:41.8]} 16. Be3 {[%clk 0:02:03.3]} 16... Nf5 {[%clk
0:02:41.1]} 17. Bg4 {[%clk 0:02:03.6]} 17... Nfxd4 {[%clk 0:02:37]} 18. Rae1
{[%clk 0:01:55.6]} 18... Qd6 {[%clk 0:02:21.4]} 19. f4 {[%clk 0:01:38.3]} 19...
Bg7 {[%clk 0:02:14.6]} 20. Ne2 {[%clk 0:01:12.2]} 20... Nf5 {[%clk 0:02:07.2]}
21. Bxf5 {[%clk 0:01:06.2]} 21... exf5 {[%clk 0:02:08.1]} 22. Rd1 {[%clk
0:00:53.2]} 22... Re7 {[%clk 0:01:59.2]} 23. Nd4 {[%clk 0:00:42.4]} 23... Rae8
{[%clk 0:01:50.4]} 24. Bf2 {[%clk 0:00:32.6]} 24... Bxd4 {[%clk 0:01:29.2]} 25.
Bxd4 {[%clk 0:00:31.3]} 25... Re2 {[%clk 0:01:29.3]} 26. Qc3 {[%clk 0:00:31.9]}
26... Qb4 {[%clk 0:01:18.9]} 27. Qxb4 {[%clk 0:00:29.8]} 27... Nxb4 {[%clk
0:01:19.5]} 28. Be5 {[%clk 0:00:28.7]} 28... Nc6 {[%clk 0:01:15.4]} 29. Rxd5
{[%clk 0:00:27.5]} 29... Nxe5 {[%clk 0:01:15.5]} 30. fxe5 {[%clk 0:00:28.2]}
30... R2xe5 {[%clk 0:01:15.7]} 31. Rd7 {[%clk 0:00:25.9]} 31... R8e7 {[%clk
0:01:15.7]} 32. Rfd1 {[%clk 0:00:26.2]} 32... Kg7 {[%clk 0:01:15.6]} 33. Rxe7+
{[%clk 0:00:24.5]} 33... Rxe7 {[%clk 0:01:15.5]} 34. Kf2 {[%clk 0:00:25.3]}
34... h5 {[%clk 0:01:16]} 35. Rd6 {[%clk 0:00:23.8]} 35... h4 {[%clk 0:01:16.2]}
36. Rb6 {[%clk 0:00:23.9]} 36... Kh6 {[%clk 0:01:16.3]} 37. Kf3 {[%clk
0:00:23.6]} 37... Kg5 {[%clk 0:01:17]} 38. Kf2 {[%clk 0:00:23.1]} 38... Rc7
{[%clk 0:01:13.2]} 39. Kf3 {[%clk 0:00:21.8]} 39... Rd7 {[%clk 0:01:09.9]} 40.
a3 {[%clk 0:00:20]} 40... Kh6 {[%clk 0:01:04.9]} 41. Kf4 {[%clk 0:00:18.6]}
41... Kh5 {[%clk 0:01:04.9]} 42. Kf3 {[%clk 0:00:17.8]} 42... Kh6 {[%clk
0:01:04.9]} 43. Kf4 {[%clk 0:00:17.6]} 43... Rd2 {[%clk 0:01:03.5]} 44. Kf3
{[%clk 0:00:18.1]} 44... Kg5 {[%clk 0:00:53.2]} 45. Rxb7 {[%clk 0:00:17.3]}
45... Rd3+ {[%clk 0:00:53.7]} 46. Ke2 {[%clk 0:00:16.4]} 46... Rg3 {[%clk
0:00:52.8]} 47. Kf2 {[%clk 0:00:16.8]} 47... Rd3 {[%clk 0:00:52]} 48. Ke2 {[%clk
0:00:16.2]} 48... Rd5 {[%clk 0:00:46.2]} 49. Rb6 {[%clk 0:00:15.4]} 49... a5
{[%clk 0:00:45.5]} 50. a4 {[%clk 0:00:15.3]} 50... Rd4 {[%clk 0:00:42.5]} 51. b3
{[%clk 0:00:15.4]} 51... Kf4 {[%clk 0:00:42.2]} 52. Rb5 {[%clk 0:00:15.8]} 52...
Re4+ {[%clk 0:00:38.4]} 53. Kf2 {[%clk 0:00:16.1]} 53... Rd4 {[%clk 0:00:37.1]}
54. Rxa5 {[%clk 0:00:13.8]} 54... Rd2+ {[%clk 0:00:37.1]} 55. Ke1 {[%clk
0:00:14.5]} 55... Rxg2 {[%clk 0:00:36.7]} 56. Ra6 {[%clk 0:00:13.2]} 56... g5
{[%clk 0:00:31.8]} 57. Rh6 {[%clk 0:00:12.7]} 57... Rb2 {[%clk 0:00:28]} 58. a5
{[%clk 0:00:05.5]} 58... Rxb3 {[%clk 0:00:27.5]} 59. a6 {[%clk 0:00:06.3]} 59...
Ra3 {[%clk 0:00:27.8]} 60. Kd2 {[%clk 0:00:05.2]} 60... Kg3 {[%clk 0:00:27]} 61.
Rh5 {[%clk 0:00:04.6]} 61... g4 {[%clk 0:00:27.2]} 62. hxg4 {[%clk 0:00:05.3]}
62... fxg4 {[%clk 0:00:27.4]} 63. Rh6 {[%clk 0:00:06.1]} 63... h3 {[%clk
0:00:27.8]} 64. Kc2 {[%clk 0:00:06.8]} 64... Kg2 {[%clk 0:00:27.9]} 65. Kb2
{[%clk 0:00:07.4]} 65... Ra5 {[%clk 0:00:25.9]} 66. Kb3 {[%clk 0:00:04]} 66...
g3 {[%clk 0:00:25.5]} 67. Kb4 {[%clk 0:00:04.7]} 67... Ra2 {[%clk 0:00:24.2]}
68. Kb5 {[%clk 0:00:05.5]} 68... h2 {[%clk 0:00:24]} 69. Kb6 {[%clk 0:00:06.3]}
69... Kg1 {[%clk 0:00:23.6]} 70. Rc6 {[%clk 0:00:05]} 70... Rxa6+ {[%clk
0:00:19.3]} 71. Kxa6 {[%clk 0:00:05]} 71... g2 {[%clk 0:00:19.9]} 72. Rc1+
{[%clk 0:00:05.7]} 72... Kf2 {[%clk 0:00:20.2]} 73. Rc2+ {[%clk 0:00:06.4]}
73... Kf3 {[%clk 0:00:20.7]} 74. Rc3+ {[%clk 0:00:06.9]} 74... Ke4 {[%clk
0:00:20.8]} 75. Rc4+ {[%clk 0:00:07.6]} 75... Ke5 {[%clk 0:00:19.8]} 76. Rc5+
{[%clk 0:00:07.8]} 76... Ke6 {[%clk 0:00:20.3]} 77. Rc6+ {[%clk 0:00:08.2]}
77... Ke7 {[%clk 0:00:20.8]} 78. Rc7+ {[%clk 0:00:08.7]} 78... Kf8 {[%clk
0:00:19.4]} 79. Rc8+ {[%clk 0:00:08.6]} 79... Kf7 {[%clk 0:00:19.7]} 80. Rc7+
{[%clk 0:00:09.3]} 80... Ke6 {[%clk 0:00:20.1]} 81. Rc6+ {[%clk 0:00:09.9]}
81... Kd5 {[%clk 0:00:20.7]} 82. Kb5 {[%clk 0:00:07.4]} 82... g1=Q {[%clk
0:00:19.7]} 83. Rc5+ {[%clk 0:00:08.1]} 83... Kd6 {[%clk 0:00:19.1]} 84. Rc6+
{[%clk 0:00:08.7]} 84... Kd7 {[%clk 0:00:19.3]} 85. Rc4 {[%clk 0:00:07.9]} 85...
h1=Q {[%clk 0:00:19.3]} 86. Kb4 {[%clk 0:00:08.3]} 86... Qb7+ {[%clk 0:00:18.6]}
87. Kc3 {[%clk 0:00:08.5]} 87... Qe3+ {[%clk 0:00:18.5]} 88. Kc2 {[%clk
0:00:09.1]} 88... Qbb3# {[%clk 0:00:18.7]} 0-1

[Event "Late-Titled-Tuesday-Blitz-February-13-2024"]
[Site "Chess.com"]
[Date "2024.02.13"]
[Round "11"]
[White "Bigfish1995"]
[Black "BogdanDeac"]
[Result "1/2-1/2"]
[WhiteElo "3166"]
[BlackElo "3039"]
[TimeControl "180+1"]
[EndTime "16:07:10 PST"]
[Termination "Game drawn - insufficient material"]

1. e4 {[%clk 0:02:56.4]} 1... e5 {[%clk 0:02:59.8]} 2. Nf3 {[%clk 0:02:56.4]}
2... Nf6 {[%clk 0:03:00.2]} 3. Nxe5 {[%clk 0:02:55.2]} 3... d6 {[%clk
0:03:00.6]} 4. Nf3 {[%clk 0:02:55.4]} 4... Nxe4 {[%clk 0:03:00.9]} 5. d3 {[%clk
0:02:55.7]} 5... Nf6 {[%clk 0:03:00.9]} 6. d4 {[%clk 0:02:56.6]} 6... g6 {[%clk
0:03:00.5]} 7. Bd3 {[%clk 0:02:57]} 7... Bg7 {[%clk 0:03:00.5]} 8. O-O {[%clk
0:02:57.5]} 8... O-O {[%clk 0:02:59.3]} 9. h3 {[%clk 0:02:58.1]} 9... Re8 {[%clk
0:02:57.9]} 10. Nc3 {[%clk 0:02:53.1]} 10... Nc6 {[%clk 0:02:57.3]} 11. a3
{[%clk 0:02:51.4]} 11... Ne7 {[%clk 0:02:52.7]} 12. Re1 {[%clk 0:02:32.1]} 12...
Bf5 {[%clk 0:02:49.7]} 13. Bf1 {[%clk 0:02:18]} 13... h6 {[%clk 0:02:37.4]} 14.
d5 {[%clk 0:02:13.1]} 14... Bd7 {[%clk 0:02:13.4]} 15. a4 {[%clk 0:02:09.6]}
15... Nf5 {[%clk 0:01:56.8]} 16. Rxe8+ {[%clk 0:02:03.4]} 16... Qxe8 {[%clk
0:01:57.7]} 17. Qd3 {[%clk 0:02:02.1]} 17... Ne7 {[%clk 0:01:29.1]} 18. Qc4
{[%clk 0:01:55.5]} 18... Qd8 {[%clk 0:01:26.8]} 19. a5 {[%clk 0:01:48]} 19... a6
{[%clk 0:01:19.7]} 20. Qb3 {[%clk 0:01:45.1]} 20... Rb8 {[%clk 0:00:53.2]} 21.
Be3 {[%clk 0:01:40.8]} 21... Qc8 {[%clk 0:00:52.9]} 22. Nd4 {[%clk 0:01:27.1]}
22... c5 {[%clk 0:00:29.8]} 23. Nf3 {[%clk 0:01:21.2]} 23... Nf5 {[%clk
0:00:24.8]} 24. Bf4 {[%clk 0:01:20.8]} 24... g5 {[%clk 0:00:25]} 25. Bh2 {[%clk
0:01:21.1]} 25... g4 {[%clk 0:00:25.4]} 26. hxg4 {[%clk 0:01:19.9]} 26... Nxg4
{[%clk 0:00:26.3]} 27. Bf4 {[%clk 0:01:19.9]} 27... Nd4 {[%clk 0:00:21.5]} 28.
Nxd4 {[%clk 0:01:19.7]} 28... Bxd4 {[%clk 0:00:22.2]} 29. Bg3 {[%clk 0:01:05.8]}
29... Qd8 {[%clk 0:00:14.3]} 30. Qb6 {[%clk 0:00:45.8]} 30... Qxb6 {[%clk
0:00:08]} 31. axb6 {[%clk 0:00:45.3]} 31... Re8 {[%clk 0:00:07.9]} 32. Bd3
{[%clk 0:00:28.6]} 32... f5 {[%clk 0:00:05.9]} 33. Kf1 {[%clk 0:00:26.9]} 33...
f4 {[%clk 0:00:04.9]} 34. Bxf4 {[%clk 0:00:21]} 34... Nxf2 {[%clk 0:00:05.1]}
35. Bg6 {[%clk 0:00:15.9]} 35... Rf8 {[%clk 0:00:04.6]} 36. Ne2 {[%clk
0:00:14.7]} 36... Ng4 {[%clk 0:00:04]} 37. g3 {[%clk 0:00:14.4]} 37... Bxb2
{[%clk 0:00:03.8]} 38. Rb1 {[%clk 0:00:12.4]} 38... Be5 {[%clk 0:00:04.3]} 39.
Ke1 {[%clk 0:00:12.9]} 39... Bxf4 {[%clk 0:00:04.2]} 40. Nxf4 {[%clk 0:00:13]}
40... Ne5 {[%clk 0:00:04.7]} 41. Be4 {[%clk 0:00:12.8]} 41... a5 {[%clk
0:00:05.1]} 42. Ke2 {[%clk 0:00:09.6]} 42... a4 {[%clk 0:00:05.1]} 43. Ne6
{[%clk 0:00:09.9]} 43... Ra8 {[%clk 0:00:05.2]} 44. Nc7 {[%clk 0:00:09.6]} 44...
Ra5 {[%clk 0:00:05.2]} 45. Ra1 {[%clk 0:00:08.1]} 45... Nc4 {[%clk 0:00:04.1]}
46. Bd3 {[%clk 0:00:05.8]} 46... Nxb6 {[%clk 0:00:04.2]} 47. c4 {[%clk
0:00:03.9]} 47... a3 {[%clk 0:00:04.3]} 48. Kd2 {[%clk 0:00:04.7]} 48... a2
{[%clk 0:00:03.7]} 49. Kc2 {[%clk 0:00:04.9]} 49... Ra3 {[%clk 0:00:03.8]} 50.
Bf1 {[%clk 0:00:04.2]} 50... Ba4+ {[%clk 0:00:02.6]} 51. Kb2 {[%clk 0:00:04.6]}
51... Rf3 {[%clk 0:00:03.2]} 52. Kxa2 {[%clk 0:00:04.1]} 52... Kf7 {[%clk
0:00:02.7]} 53. Kb2 {[%clk 0:00:04.1]} 53... Ke7 {[%clk 0:00:02.5]} 54. Ne6
{[%clk 0:00:04.4]} 54... Rf2+ {[%clk 0:00:02.6]} 55. Kc3 {[%clk 0:00:04.2]}
55... Rf3+ {[%clk 0:00:03.2]} 56. Kd2 {[%clk 0:00:04.7]} 56... Rxg3 {[%clk
0:00:03.5]} 57. Be2 {[%clk 0:00:04.3]} 57... Rb3 {[%clk 0:00:03.4]} 58. Nf4
{[%clk 0:00:03.9]} 58... Rb2+ {[%clk 0:00:03.3]} 59. Ke3 {[%clk 0:00:04.5]}
59... Bb3 {[%clk 0:00:03.5]} 60. Ra8 {[%clk 0:00:03.6]} 60... Nxc4+ {[%clk
0:00:03.5]} 61. Bxc4 {[%clk 0:00:03.1]} 61... Bxc4 {[%clk 0:00:03.6]} 62. Rh8
{[%clk 0:00:03.9]} 62... Rb3+ {[%clk 0:00:03.3]} 63. Ke4 {[%clk 0:00:03.9]}
63... b5 {[%clk 0:00:02.8]} 64. Rh7+ {[%clk 0:00:04.4]} 64... Kd8 {[%clk
0:00:03.2]} 65. Rxh6 {[%clk 0:00:05]} 65... Rb1 {[%clk 0:00:03.6]} 66. Rxd6+
{[%clk 0:00:04.8]} 66... Ke7 {[%clk 0:00:04.2]} 67. Rc6 {[%clk 0:00:05.4]} 67...
Re1+ {[%clk 0:00:03.9]} 68. Kf5 {[%clk 0:00:05.8]} 68... Kd7 {[%clk 0:00:04.3]}
69. Rxc5 {[%clk 0:00:05.9]} 69... Rf1 {[%clk 0:00:03.7]} 70. Ke5 {[%clk
0:00:05.5]} 70... Re1+ {[%clk 0:00:04.2]} 71. Kd4 {[%clk 0:00:06.1]} 71... Rd1+
{[%clk 0:00:04.6]} 72. Kc3 {[%clk 0:00:06.7]} 72... Rc1+ {[%clk 0:00:05]} 73.
Kb4 {[%clk 0:00:07.2]} 73... Ra1 {[%clk 0:00:05.1]} 74. Rc6 {[%clk 0:00:07]}
74... Bxd5 {[%clk 0:00:04.5]} 75. Rb6 {[%clk 0:00:07.2]} 75... Ra4+ {[%clk
0:00:04.1]} 76. Kc5 {[%clk 0:00:06.9]} 76... Rxf4 {[%clk 0:00:04.3]} 77. Kxd5
{[%clk 0:00:07.6]} 77... Rf5+ {[%clk 0:00:04.9]} 78. Kd4 {[%clk 0:00:07.7]}
78... Kc7 {[%clk 0:00:05.1]} 79. Rh6 {[%clk 0:00:08.3]} 79... Rg5 {[%clk
0:00:05.3]} 80. Kc3 {[%clk 0:00:08.5]} 80... Rg4 {[%clk 0:00:04.8]} 81. Kb3
{[%clk 0:00:08.8]} 81... Rc4 {[%clk 0:00:05.4]} 82. Rf6 {[%clk 0:00:09.2]} 82...
Rc6 {[%clk 0:00:05.9]} 83. Rf5 {[%clk 0:00:08.1]} 83... Kb6 {[%clk 0:00:05.9]}
84. Rf4 {[%clk 0:00:08.6]} 84... Rh6 {[%clk 0:00:05.9]} 85. Kb4 {[%clk
0:00:08.1]} 85... Rc6 {[%clk 0:00:06.4]} 86. Re4 {[%clk 0:00:08.4]} 86... Rd6
{[%clk 0:00:06.8]} 87. Rf4 {[%clk 0:00:08.8]} 87... Re6 {[%clk 0:00:04.6]} 88.
Rg4 {[%clk 0:00:09]} 88... Rc6 {[%clk 0:00:05]} 89. Rh4 {[%clk 0:00:09.6]} 89...
Rc4+ {[%clk 0:00:05.5]} 90. Rxc4 {[%clk 0:00:09.7]} 90... bxc4 {[%clk
0:00:06.4]} 91. Kxc4 {[%clk 0:00:10.3]} 1/2-1/2